bitfinex-derivatives/quotes_ETHF0:USTF0_20241105
["timestamp","ask_amount","ask_price","bid_price","bid_amount"]
[1730836498441,3.2078,2423.0,2422.4,0.33023]
[1730836498941,3.2078,2423.0,2422.1,3.2078]
[1730836499130,5.81500381,2423.5,2422.1,3.2078]
[1730836499131,3.2078,2422.7,2422.1,3.53806]
[1730836499332,3.2078,2422.7,2422.3,0.33024]
[1730836499530,3.2078,2422.7,2422.1,3.2078]
[1730836499833,3.2078,2422.7,2421.7,2.5607]
[1730836499834,3.2078,2422.4,2421.8,3.2078]
[1730836500039,3.2078,2422.4,2422.1,0.33026]
[1730836500346,1.3528,2423.5,2422.4,0.33022]
[1730836500347,40.8,2422.6,2422.4,0.33022]
[1730836500542,40.8,2422.6,2422.3,0.33024]
[1730836500744,44.0078,2422.6,2421.8,3.2078]
[1730836500939,3.2078,2422.9,2421.9,4.46220381]
[1730836501140,3.2078,2422.9,2422.1,3.2078]
[1730836501343,3.2078,2422.9,2422.1,4.03348]
[1730836501640,3.2078,2422.9,2422.8,0.33017]
[1730836501845,4.5606,2423.5,2422.8,4.1272]
[1730836502146,2.61817437,2424.8,2422.7,3.2078]
[1730836502147,3.2078,2424.2,2423.3,3.2078]
[1730836502447,3.2078,2423.9,2422.9,4.46220381]
[1730836502746,3.2078,2423.9,2423.7,0.33004]
[1730836502948,3.2078,2424.2,2423.5,0.33007]
[1730836503146,3.2078,2424.2,2423.2,7.67000381]
[1730836503342,3.2078,2424.2,2423.8,0.33004]
[1730836503740,3.2078,2424.2,2423.2,7.67000381]
[1730836503741,3.2078,2424.2,2423.3,0.33011]
[1730836503940,3.2078,2424.2,2423.7,0.33004]
[1730836504140,3.2078,2423.9,2423.4,0.33008]
[1730836504350,3.2078,2423.9,2422.9,7.67000381]
[1730836504642,3.2078,2423.9,2423.2,0.33011]
[1730836504849,3.2078,2423.9,2423.3,0.3301]
[1730836505349,40.8,2424.4,2422.9,10.27700381]
[1730836505350,3.2078,2423.5,2423.0,0.33014]
[1730836506150,3.2078,2423.5,2422.9,4.46220381]
[1730836506454,3.2078,2423.8,2423.3,7.67000381]
[1730836506639,3.2078,2423.8,2423.6,0.33006]
[1730836507036,3.2078,2424.1,2423.5,0.33008]
[1730836507254,3.2078,2424.1,2423.3,7.67000381]
[1730836507452,3.2078,2424.1,2423.5,0.33008]
[1730836507747,3.2078,2423.8,2423.0,4.46220381]
[1730836507955,3.2078,2423.8,2423.5,0.33007]
[1730836508447,3.2078,2423.8,2423.2,3.2078]
[1730836508448,3.2078,2423.8,2423.4,0.33008]
[1730836508654,0.33006,2423.7,2423.0,4.79234381]
[1730836508840,3.2078,2423.5,2423.0,0.33015]
[1730836509240,3.2078,2423.5,2422.8,1.294]
[1730836509448,3.2078,2423.0,2422.6,2.699]
[1730836509654,3.2078,2423.4,2423.3,0.33011]
[1730836509851,3.2078,2423.7,2423.1,3.2078]
[1730836510044,3.2078,2423.7,2423.2,0.33012]
[1730836510245,3.2078,2423.7,2423.3,0.3301]
[1730836510446,3.2078,2423.7,2423.1,3.2078]
[1730836510652,3.2078,2423.4,2422.9,0.33015]
[1730836510848,40.8,2424.4,2422.4,4.4954]
[1730836510849,0.33016,2423.0,2422.4,3.2078]
[1730836511052,1.27,2424.6,2422.1,3.2078]
[1730836511053,3.2078,2422.7,2422.1,3.2078]
[1730836511347,1.3564,2423.3,2421.8,3.2078]
[1730836511348,3.53804,2422.4,2421.8,3.2078]
[1730836511547,3.2078,2422.4,2421.8,3.5381]
[1730836511953,0.33025,2422.3,2421.8,3.2078]
[1730836512247,0.33024,2422.3,2421.8,3.2078]
[1730836512441,3.2078,2422.1,2420.9,4.46220381]
[1730836512641,3.2078,2421.6,2421.0,3.2078]
[1730836512847,3.2078,2421.6,2421.4,0.33036]
[1730836513051,3.2078,2421.6,2421.0,3.2078]
[1730836513052,3.2078,2421.9,2421.3,0.33037]
[1730836513547,1.3107,2422.2,2421.3,7.3374]
[1730836513548,4.5185,2422.2,2421.3,7.3374]
[1730836513751,3.2078,2422.2,2422.0,0.33027]
[1730836514351,3.2078,2422.2,2421.6,7.67000381]
[1730836514550,3.2078,2422.2,2422.1,0.33027]
[1730836515251,3.2078,2422.2,2421.7,1.2443]
[1730836515252,3.2078,2422.5,2421.9,3.2078]
[1730836515450,40.8,2422.6,2421.3,0.33037]
[1730836515451,3.53808,2422.1,2421.3,0.33037]
[1730836515649,3.2078,2421.8,2421.1,0.3304]
[1730836515841,3.2078,2421.8,2421.4,0.33036]
[1730836516044,3.53812,2421.8,2421.1,0.3304]
[1730836516347,3.53812,2421.8,2420.5,0.82622]
[1730836516348,3.2078,2421.2,2420.1,1.61186835]
[1730836516549,3.2078,2420.4,2419.3,1.0745789]
[1730836516752,3.2078,2419.4,2419.0,5.72950381]
[1730836517049,3.2078,2419.4,2418.9,3.2078]
[1730836517254,3.2078,2419.4,2419.0,0.33069]
[1730836517457,3.2078,2419.4,2418.9,3.2078]
[1730836517755,3.2078,2419.4,2419.0,0.33068]
[1730836517945,3.2078,2419.1,2418.6,0.33074]
[1730836518147,4.1336,2419.3,2418.1,0.33082]
[1730836518148,3.2078,2419.0,2418.1,0.33082]
[1730836518347,3.2078,2419.0,2418.2,3.2078]
[1730836519352,1.3405,2419.2,2417.9,3.2078]
[1730836519353,3.2078,2418.7,2417.9,3.2078]
[1730836519556,3.2078,2419.0,2418.3,0.33078]
[1730836519755,3.2078,2419.0,2418.2,0.33079]
[1730836519952,3.2078,2418.7,2418.2,0.33079]
[1730836520145,3.2078,2418.4,2417.5,5.75050381]
[1730836520345,3.2078,2418.4,2417.7,0.33086]
[1730836520547,3.2078,2417.8,2417.0,3.2078]
[1730836520753,3.2078,2417.8,2416.4,1.83765558]
[1730836520754,3.2078,2417.5,2416.6,3.2078]
[1730836521054,3.2078,2417.8,2416.9,4.46220381]
[1730836521245,3.2078,2417.8,2416.9,7.67000381]
[1730836521554,1.3082,2419.1,2418.2,0.3308]
[1730836521555,3.2078,2418.4,2418.2,0.3308]
[1730836521764,4.5483,2419.2,2418.9,0.33071]
[1730836521956,4.5483,2419.2,2418.6,0.33074]
[1730836521957,3.2078,2419.2,2418.6,0.33074]
[1730836522253,3.2078,2419.2,2418.6,4.46220381]
[1730836522449,3.2078,2419.2,2419.0,0.33068]
[1730836522649,3.2078,2419.2,2418.7,0.33072]
[1730836522853,3.2078,2419.5,2419.1,0.33068]
[1730836523052,1.3037,2420.0,2418.2,0.827]
[1730836523053,3.2078,2419.2,2418.3,3.2078]
[1730836523559,3.2078,2419.2,2418.0,1.2951]
[1730836523750,3.2078,2418.9,2418.0,1.2951]
[1730836523947,3.2078,2418.9,2418.0,4.5029]
[1730836524259,3.2078,2419.2,2418.7,0.33073]
[1730836524754,3.2078,2419.2,2418.4,0.33078]
[1730836524956,3.2078,2418.9,2418.6,0.33074]
[1730836525354,3.2078,2418.9,2417.8,2.5801]
[1730836525560,3.2078,2418.4,2418.2,0.3308]
[1730836525756,3.2078,2418.4,2418.1,0.33081]
[1730836525956,3.2078,2418.4,2418.2,0.3308]
[1730836526257,3.2078,2418.9,2418.8,0.33072]
[1730836526459,1.3037,2420.0,2418.5,0.33075]
[1730836526460,3.2078,2419.3,2418.5,0.33075]
[1730836526652,3.2078,2419.3,2418.4,3.2078]
[1730836526954,3.2078,2419.3,2418.2,4.01815483]
[1730836526955,3.2078,2419.0,2418.2,4.01815483]
[1730836527161,1.3037,2420.0,2418.8,0.33072]
[1730836527162,3.2078,2419.6,2418.8,0.33072]
[1730836527354,3.2078,2419.6,2418.6,3.2078]
[1730836527355,3.2078,2419.3,2418.6,3.2078]
[1730836527670,3.2078,2419.3,2419.2,0.33067]
[1730836528053,3.2078,2419.3,2418.6,7.22595483]
[1730836528249,3.2078,2419.3,2419.1,0.33067]
[1730836528451,3.2078,2419.3,2418.6,7.22595483]
[1730836528452,3.2078,2419.3,2419.2,0.33067]
[1730836528661,3.2078,2419.5,2418.7,3.2078]
[1730836528957,1.3037,2420.0,2418.2,7.22595483]
[1730836528958,3.2078,2419.2,2418.2,7.22595483]
[1730836529262,3.2078,2419.6,2419.0,0.33069]
[1730836529448,3.2078,2419.6,2418.6,7.22595483]
[1730836529853,3.2078,2419.6,2418.9,0.3307]
[1730836530054,3.2078,2419.6,2418.6,3.2078]
[1730836530055,3.53842,2419.6,2418.6,3.2078]
[1730836530254,3.53842,2419.6,2418.3,4.01815483]
[1730836530255,3.2078,2418.9,2418.3,3.2078]
[1730836530758,4.01815483,2419.4,2417.8,3.2078]
[1730836530759,3.2078,2418.4,2417.8,3.2078]
[1730836531260,43.3323,2418.8,2417.8,3.2078]
[1730836531261,3.2078,2418.2,2417.8,3.2078]
[1730836531456,3.2078,2418.4,2417.9,0.33083]
[1730836531656,3.2078,2418.4,2418.3,0.33079]
[1730836531859,3.2078,2418.4,2417.8,3.2078]
[1730836532064,3.2078,2418.4,2418.2,0.33079]
[1730836532261,3.2078,2418.4,2418.0,0.33082]
[1730836532562,3.2078,2418.4,2417.8,3.2078]
[1730836532751,3.2078,2418.4,2418.1,0.33081]
[1730836532956,3.2078,2418.4,2418.2,0.3308]
[1730836533156,46.5401,2418.8,2417.8,3.2078]
[1730836533357,3.2078,2418.5,2417.8,3.53866]
[1730836533657,3.2078,2418.5,2417.8,3.2078]
[1730836533858,3.2078,2418.2,2417.8,3.2078]
[1730836534061,3.2078,2418.2,2417.3,10.328]
[1730836534259,3.2078,2417.9,2417.4,0.33091]
[1730836534458,3.2078,2417.9,2417.1,3.2078]
[1730836534659,3.2078,2417.6,2416.8,2.885]
[1730836534864,3.2078,2417.6,2416.9,0.33097]
[1730836535265,3.2078,2417.6,2416.6,8.53225483]
[1730836535266,3.2078,2417.3,2416.6,3.2078]
[1730836535667,3.2078,2417.3,2416.6,7.22595483]
[1730836535863,40.8,2417.6,2417.0,0.33096]
[1730836536161,40.8,2417.6,2416.6,7.22595483]
[1730836536369,4.5578,2417.7,2416.6,7.22595483]
[1730836536562,3.2078,2417.4,2416.7,0.33101]
[1730836536760,44.0078,2417.4,2417.0,0.33096]
[1730836537068,1.57556,2417.8,2416.8,3.2078]
[1730836537069,3.2078,2417.8,2416.8,3.2078]
[1730836537272,0.20631781,2420.1,2416.8,3.2078]
[1730836537273,3.2078,2417.4,2416.8,3.2078]
[1730836537468,3.2078,2418.1,2417.7,0.33086]
[1730836537668,3.2078,2418.1,2418.0,0.33083]
[1730836537872,3.2078,2418.4,2417.8,4.01815483]
[1730836538266,3.2078,2418.4,2417.7,3.2078]
[1730836538662,3.2078,2418.4,2415.1,1.06067082]
[1730836538663,3.2078,2418.1,2417.4,0.3309]
[1730836538871,3.2078,2418.1,2417.0,3.2078]
[1730836539067,3.2078,2417.8,2417.0,3.2078]
[1730836539368,1.2811,2418.5,2416.8,4.01815483]
[1730836539369,3.2078,2418.0,2416.8,4.01815483]
[1730836539673,1.2811,2418.5,2416.1,0.22591907]
[1730836539674,3.2078,2417.4,2416.4,3.2078]
[1730836539874,3.53876,2417.1,2416.4,3.2078]
[1730836540064,3.53876,2417.1,2416.2,0.33107]
[1730836540065,3.2078,2416.8,2416.2,0.33107]
[1730836540375,3.2078,2416.4,2416.0,3.2078]
[1730836540963,3.2078,2416.4,2416.0,3.5389]
[1730836541166,3.2078,2416.4,2416.0,3.2078]
[1730836541570,3.2078,2416.7,2416.0,3.2078]
[1730836541764,5.7428,2417.3,2416.2,4.01815483]
[1730836541960,5.7428,2417.3,2416.6,7.22595483]
[1730836541961,3.2078,2417.3,2416.6,7.22595483]
[1730836542372,3.2078,2417.4,2416.6,7.22595483]
[1730836542672,3.2078,2417.4,2416.6,3.53882]
[1730836542974,0.33089,2417.6,2415.8,3.2078]
[1730836542975,0.33104,2416.5,2415.8,3.2078]
[1730836543172,3.2078,2416.4,2415.8,3.2078]
[1730836544372,3.2078,2416.4,2414.6,0.64044922]
[1730836544373,3.2078,2416.1,2415.5,3.2078]
[1730836544874,4.01815483,2417.2,2415.5,3.2078]
[1730836544875,3.2078,2416.7,2416.0,0.3311]
[1730836545063,3.2078,2416.7,2416.1,0.33109]
[1730836545270,3.2078,2416.7,2415.9,3.2078]
[1730836545773,3.2078,2416.7,2416.1,0.33108]
[1730836545975,1.3127,2417.2,2415.8,3.2078]
[1730836545976,3.2078,2416.4,2415.8,3.2078]
[1730836546474,3.2078,2416.4,2415.0,4.01815483]
[1730836546475,3.2078,2416.4,2415.6,0.33116]
[1730836546674,3.2078,2416.4,2415.5,3.2078]
[1730836546869,3.5389,2416.1,2415.5,3.2078]
[1730836547073,3.2078,2416.1,2415.5,3.2078]
[1730836547278,0.33112,2415.9,2415.5,3.2078]
[1730836547573,3.2078,2416.1,2415.5,3.53897]
[1730836547774,3.2078,2416.1,2415.5,3.2078]
[1730836547981,3.2078,2416.1,2415.8,0.33113]
[1730836548189,3.2078,2416.1,2415.5,3.2078]
[1730836548375,1.2458,2416.3,2415.5,3.2078]
[1730836548376,1.2458,2416.3,2415.9,0.33112]
[1730836548674,1.2458,2416.3,2415.5,3.2078]
[1730836548675,3.2078,2416.7,2415.8,6.78385827]
[1730836548874,3.2078,2416.7,2416.1,3.2078]
[1730836549070,3.2078,2416.7,2416.1,3.53888]
[1730836549270,3.53882,2416.7,2415.8,3.53893]
[1730836549477,3.2078,2416.7,2415.9,0.33111]
[1730836549779,3.2078,2416.8,2415.6,3.2078]
[1730836549991,3.57605827,2417.0,2415.6,3.2078]
[1730836549992,3.2078,2416.0,2415.6,3.2078]
[1730836550675,3.53891,2416.0,2415.6,3.2078]
[1730836550870,3.53891,2416.0,2414.9,4.94005827]
[1730836550871,3.2078,2416.0,2415.5,0.33116]
[1730836551071,3.2078,2416.3,2415.3,6.78385827]
[1730836551382,3.2078,2416.3,2415.8,0.33112]
[1730836551580,3.2078,2416.3,2415.3,3.2078]
[1730836551782,3.2078,2416.3,2414.7,3.2078]
[1730836551783,0.33119,2415.4,2414.7,3.2078]
[1730836551978,3.53899,2415.4,2414.7,3.2078]
[1730836552181,3.2078,2415.7,2414.7,3.2078]
[1730836552478,3.2078,2415.7,2415.2,0.33121]
[1730836552685,3.2078,2415.7,2415.5,0.33116]
[1730836552975,2.6593,2416.2,2415.6,3.53896]
[1730836553177,2.6593,2416.2,2414.5,0.01579]
[1730836553178,2.6593,2416.2,2415.2,3.2078]
[1730836553372,0.33117,2415.6,2414.8,4.5405]
[1730836553571,3.2078,2415.7,2414.8,4.5405]
[1730836553883,2.6593,2416.2,2415.1,3.2078]
[1730836553884,3.2078,2416.0,2415.1,3.2078]
[1730836554081,3.2078,2415.7,2414.7,3.2078]
[1730836554279,3.2078,2415.7,2414.9,0.33125]
[1730836554578,3.2078,2415.7,2414.7,3.2078]
[1730836554884,3.2078,2416.0,2415.2,0.33121]
[1730836555079,3.2078,2416.0,2415.0,3.2078]
[1730836555279,3.2078,2415.2,2414.5,0.01579]
[1730836555486,6.78385827,2414.6,2412.9,3.2078]
[1730836555678,6.78385827,2414.6,2413.1,0.33149]
[1730836555679,3.2078,2413.6,2413.1,0.33149]
[1730836555983,3.2078,2413.6,2413.1,0.3315]
[1730836556181,3.2078,2413.6,2412.7,3.2078]
[1730836556495,3.2078,2413.7,2413.4,3.2078]
[1730836556780,3.2078,2413.7,2412.8,3.2078]
[1730836556982,3.2078,2413.7,2413.3,0.33147]
[1730836557182,3.2078,2413.7,2412.8,3.2078]
[1730836557389,3.2078,2413.7,2412.9,0.33153]
[1730836557584,3.2078,2413.7,2413.1,3.5393]
[1730836557889,1.3008,2415.1,2412.5,1.3364]
[1730836557890,7.11532827,2413.4,2412.5,3.2078]
[1730836558071,0.82836,2414.3,2412.0,0.33164]
[1730836558072,3.2078,2412.8,2412.0,3.2078]
[1730836558276,5.58158955,2413.6,2412.0,3.2078]
[1730836558277,3.2078,2412.7,2412.0,3.2078]
[1730836558672,3.2078,2413.0,2412.0,3.2078]
[1730836558876,3.2078,2413.0,2412.3,3.2078]
[1730836559483,3.2078,2413.0,2412.5,0.33158]
[1730836559684,3.2078,2413.5,2412.6,4.1448]
[1730836559874,3.2078,2413.5,2413.0,3.2078]
[1730836560074,3.2078,2413.9,2413.0,3.2078]
[1730836560280,3.2078,2413.9,2413.3,3.53927]
[1730836560579,3.2078,2413.9,2413.3,3.2078]
[1730836560973,3.2078,2413.9,2413.4,0.33146]
[1730836561175,3.2078,2413.9,2413.3,7.351]
[1730836561176,3.2078,2413.9,2413.3,3.53927]
[1730836561376,3.2078,2413.9,2413.7,0.33142]
[1730836561583,3.2078,2414.6,2413.6,3.2078]
[1730836561882,3.2078,2413.9,2413.0,1.2489]
[1730836562181,3.2078,2413.6,2413.0,1.2489]
[1730836562776,3.2078,2413.9,2413.2,0.33148]
[1730836562980,3.2078,2413.6,2413.1,3.2078]
[1730836563201,3.2078,2413.3,2412.2,1.2489]
[1730836563482,4.1432,2414.4,2412.2,4.4567]
[1730836563483,3.2078,2412.7,2412.2,4.4567]
[1730836563895,3.53939,2412.5,2411.9,3.2078]
[1730836564084,3.57605827,2413.0,2410.2,3.2078]
[1730836564085,3.57605827,2412.0,2410.2,3.2078]
[1730836564283,3.2078,2410.3,2410.0,0.2]
[1730836564785,4.1488,2410.2,2409.0,0.33207]
[1730836564993,4.1488,2410.2,2408.6,1.2503]
[1730836564994,3.2078,2409.7,2408.8,0.33209]
[1730836565286,3.2078,2409.7,2408.7,3.2078]
[1730836565287,3.2078,2409.4,2408.7,3.2078]
[1730836565491,3.2078,2409.7,2408.9,3.2078]
[1730836565684,3.2078,2409.7,2408.8,4.1512]
[1730836565685,3.2078,2410.3,2409.9,0.33193]
[1730836565990,0.82884,2412.9,2409.9,0.33193]
[1730836565991,3.2078,2410.8,2409.9,3.2078]
[1730836566289,3.2078,2410.0,2409.5,1.2348]
[1730836566592,3.2078,2410.0,2409.1,3.2078]
[1730836566781,3.10287529,2410.0,2409.1,3.2078]
[1730836567291,3.2078,2409.6,2409.1,3.2078]
[1730836567680,3.2078,2409.6,2409.1,7.3582]
[1730836567885,3.2078,2409.6,2409.0,3.2078]
[1730836568093,3.2078,2409.6,2408.7,4.5398]
[1730836568292,1.2474,2410.7,2408.7,4.5398]
[1730836568293,3.2078,2409.3,2408.7,1.332]
[1730836568583,1.2474,2410.7,2408.7,1.332]
[1730836568584,3.2078,2409.6,2409.3,0.33202]
[1730836568786,3.2078,2409.6,2408.7,1.332]
[1730836568787,3.2078,2409.6,2409.1,3.2078]
[1730836568976,3.2078,2410.0,2409.4,3.2078]
[1730836569175,3.019,2412.1,2409.7,3.2078]
[1730836569176,3.2078,2410.8,2409.7,3.2078]
[1730836569387,3.2078,2410.1,2409.7,3.2078]
[1730836569578,1.2474,2412.0,2409.2,3.2078]
[1730836569579,3.2078,2409.8,2409.2,3.2078]
[1730836570180,3.2078,2409.8,2409.4,0.33201]
[1730836570381,3.2078,2409.8,2409.2,3.2078]
[1730836570582,3.2078,2409.8,2409.2,3.53984]
[1730836570978,3.2078,2409.4,2408.8,3.53989]
[1730836571192,3.2078,2409.4,2408.8,3.2078]
[1730836571383,3.2078,2409.8,2409.1,0.33204]
[1730836571582,3.2078,2409.8,2408.8,7.359]
[1730836571583,3.2078,2409.8,2408.9,0.33208]
[1730836571788,3.2078,2409.8,2408.8,3.2078]
[1730836571789,3.2078,2409.5,2408.8,3.53989]
[1730836571988,3.2078,2409.5,2408.8,3.2078]
[1730836572388,3.2078,2408.9,2408.0,3.2078]
[1730836572781,3.2078,2409.2,2408.4,0.33215]
[1730836572982,3.2078,2409.3,2408.5,3.57605827]
[1730836573183,0.82924,2411.8,2408.3,3.2078]
[1730836573184,3.2078,2410.0,2408.9,6.78385827]
[1730836573382,3.57605827,2411.3,2410.2,0.3319]
[1730836573587,3.2078,2411.4,2410.5,3.57605827]
[1730836573790,3.2078,2411.7,2410.7,3.2078]
[1730836573986,3.2078,2411.7,2411.0,3.2078]
[1730836574185,1.3419,2412.7,2410.9,3.57605827]
[1730836574186,3.2078,2412.1,2411.4,0.33172]
[1730836574485,3.2078,2412.1,2411.3,3.2078]
[1730836574486,3.2078,2412.9,2411.8,3.2078]
[1730836574792,2.02655015,2414.0,2411.3,3.57605827]
[1730836574793,3.57605827,2412.8,2412.1,3.2078]
[1730836574994,3.2078,2413.1,2412.1,3.2078]
[1730836575688,3.57605827,2413.4,2412.1,3.2078]
[1730836575883,3.2078,2413.5,2412.1,3.2078]
[1730836575884,3.57605827,2412.7,2412.1,3.2078]
[1730836576194,3.2078,2412.5,2411.9,3.2078]
[1730836576784,3.57605827,2412.7,2411.9,3.2078]
[1730836576995,3.2078,2412.5,2411.9,3.2078]
[1730836577394,4.1456,2412.4,2411.9,3.2078]
[1730836577601,4.1456,2412.4,2411.0,3.2078]
[1730836577602,6.78385827,2412.2,2411.0,3.2078]
[1730836577807,3.2078,2413.1,2412.1,3.2078]
[1730836578094,3.57605827,2412.6,2411.7,3.2078]
[1730836578397,3.2078,2412.2,2411.4,3.2078]
[1730836578606,6.78385827,2412.2,2411.0,3.2078]
[1730836578790,3.2078,2411.7,2411.0,3.53958]
[1730836578987,3.2078,2411.7,2411.0,3.2078]
[1730836579289,0.33165,2412.1,2410.9,1.2446]
[1730836579290,3.2078,2412.9,2411.6,3.2078]
[1730836579487,40.8,2412.8,2412.1,3.2078]
[1730836579694,3.2078,2412.9,2412.1,3.2078]
[1730836579900,3.2078,2412.9,2411.6,3.2078]
[1730836579901,3.2078,2412.6,2411.6,3.2078]
[1730836580191,40.8,2412.5,2411.6,3.2078]
[1730836580394,40.8,2412.5,2410.9,1.2446]
[1730836580395,6.78385827,2412.3,2411.3,3.2078]
[1730836580590,7.11546827,2412.3,2411.3,3.2078]
[1730836580895,6.78385827,2412.3,2411.3,3.2078]
[1730836581099,3.57605827,2412.3,2411.6,3.2078]
[1730836581396,40.8,2412.5,2411.6,3.2078]
[1730836581706,0.33174,2411.4,2411.0,3.2078]
[1730836581992,6.78385827,2411.9,2411.1,0.33177]
[1730836582291,3.57605827,2412.3,2411.3,3.2078]
[1730836582492,3.57605827,2412.3,2411.6,3.2078]
[1730836582997,3.57605827,2412.3,2411.3,3.2078]
[1730836583291,3.2078,2412.1,2411.3,3.2078]
[1730836583494,40.8,2412.5,2411.7,0.33169]
[1730836583495,44.0078,2412.5,2411.7,0.33169]
[1730836583684,44.0078,2412.5,2411.6,3.2078]
[1730836583893,6.78385827,2413.2,2412.3,0.33161]
[1730836584094,6.78385827,2413.2,2411.8,3.2078]
[1730836584095,0.33156,2412.7,2411.8,3.2078]
[1730836584286,40.8,2412.7,2411.8,3.2078]
[1730836584491,0.33158,2412.6,2411.8,3.2078]
[1730836584790,40.8,2412.7,2412.1,3.2078]
[1730836584996,41.13157,2412.7,2412.1,3.2078]
[1730836585201,40.8,2412.7,2412.1,3.2078]
[1730836585391,6.78385827,2412.8,2412.1,3.2078]
[1730836585594,3.2078,2413.4,2412.4,3.2078]
[1730836585796,3.57605827,2413.6,2412.4,3.2078]
[1730836585995,3.2078,2413.4,2412.7,3.2078]
[1730836586197,3.2078,2413.4,2412.7,3.53935]
[1730836586992,3.2078,2413.4,2412.7,3.2078]
[1730836587202,40.8,2413.5,2412.9,0.33153]
[1730836587389,3.2078,2414.4,2413.4,3.2078]
[1730836587593,3.2078,2414.4,2413.7,3.2078]
[1730836587891,3.2078,2414.4,2413.1,1.324]
[1730836587892,44.0078,2414.4,2413.5,3.2078]
[1730836588085,44.0078,2414.4,2413.1,1.324]
[1730836588086,3.2078,2414.4,2413.8,3.53919]
[1730836588292,3.2078,2414.4,2413.8,3.2078]
[1730836588697,3.2078,2414.4,2413.9,0.33139]
[1730836588897,3.2078,2414.4,2413.8,3.2078]
[1730836589702,3.2078,2414.1,2413.1,1.324]
[1730836589896,3.2078,2413.6,2413.0,3.2078]
[1730836590192,40.8,2414.9,2412.2,3.2078]
[1730836590193,3.2078,2413.4,2412.2,3.2078]
[1730836590401,3.2078,2413.4,2412.5,3.2078]
[1730836590988,3.2078,2413.4,2412.7,0.33155]
[1730836591186,3.2078,2413.4,2412.5,3.2078]
[1730836591392,3.2078,2413.4,2412.8,3.2078]
[1730836592098,1.3265,2414.2,2412.8,3.2078]
[1730836592099,3.2078,2413.7,2412.8,3.2078]
[1730836592402,3.2078,2413.7,2412.7,3.2078]
[1730836592596,0.33147,2413.4,2412.7,3.2078]
[1730836592899,3.2078,2413.7,2412.7,3.2078]
[1730836592900,3.53923,2413.7,2412.7,3.2078]
[1730836593204,3.2078,2413.7,2412.7,3.2078]
[1730836593398,3.2078,2413.7,2412.9,0.33153]
[1730836593595,3.2078,2413.7,2413.0,3.2078]
[1730836594090,1.3265,2414.2,2412.7,3.2078]
[1730836594091,44.0078,2413.6,2412.7,3.2078]
[1730836594291,44.33923,2413.6,2412.7,3.53935]
[1730836594495,44.0078,2413.6,2412.8,0.33154]
[1730836594697,44.0078,2413.6,2412.7,3.2078]
[1730836594896,44.33924,2413.6,2412.7,3.53935]
[1730836595100,44.33924,2413.6,2412.7,3.2078]
[1730836595297,44.0078,2413.6,2412.7,3.2078]
[1730836595496,44.0078,2413.6,2413.0,3.53932]
[1730836595706,3.2078,2414.2,2413.3,3.2078]
[1730836596000,3.58064171,2414.5,2412.9,3.2078]
[1730836596001,0.33143,2413.7,2412.9,3.2078]
[1730836596191,4.40894171,2414.5,2412.9,3.2078]
[1730836596192,3.53923,2413.6,2412.9,3.2078]
[1730836596388,3.2078,2413.6,2412.9,3.2078]
[1730836596792,0.82833,2414.4,2412.2,3.2078]
[1730836596793,3.2078,2413.0,2412.2,3.2078]
[1730836597094,3.2078,2412.7,2411.9,0.33166]
[1730836597297,3.2078,2412.7,2411.8,3.2078]
[1730836597492,3.2078,2412.7,2411.6,1.3498]
[1730836597493,0.33162,2412.3,2411.6,1.3498]
[1730836597694,3.2078,2412.4,2411.6,1.3498]
[1730836597991,3.5394,2412.4,2411.8,3.2078]
[1730836598198,3.2078,2412.4,2411.9,0.33167]
[1730836598388,3.2078,2412.4,2411.8,3.2078]
[1730836598592,44.0078,2412.7,2411.8,3.2078]
[1730836598797,40.8,2412.7,2412.1,3.2078]
[1730836598991,3.2078,2413.0,2412.1,3.2078]
[1730836599192,3.2078,2413.0,2412.5,0.33157]
[1730836599393,40.8,2413.5,2412.8,0.33154]
[1730836599600,40.8,2413.5,2412.0,6.28273]
[1730836599601,3.2078,2413.4,2412.4,3.2078]
[1730836599791,3.2078,2413.4,2412.7,3.2078]
[1730836600394,3.2078,2413.4,2412.4,3.2078]
[1730836600593,3.2078,2413.1,2412.4,3.2078]
[1730836600799,3.2078,2413.1,2412.5,0.33158]
[1730836601299,6.78844171,2413.0,2411.9,3.2078]
[1730836601491,3.2078,2412.3,2411.9,3.2078]
[1730836601694,3.53941,2412.3,2411.9,3.2078]
[1730836602008,3.2078,2412.3,2411.9,3.2078]
[1730836602298,3.2078,2412.3,2411.8,0.33167]
[1730836602502,40.8,2412.9,2411.9,3.2078]
[1730836602801,3.2078,2412.7,2411.9,3.2078]
[1730836603192,0.33158,2412.6,2411.9,3.2078]
[1730836603392,3.2078,2412.7,2411.9,3.2078]
[1730836603393,3.2078,2412.3,2411.9,3.2078]
[1730836603698,3.58064171,2412.7,2411.7,1.3384]
[1730836603699,3.2078,2412.2,2411.7,1.3384]
[1730836603899,3.58064171,2412.7,2411.7,1.3384]
[1730836603900,0.33164,2412.1,2411.7,1.3384]
[1730836604203,3.2078,2412.2,2411.7,1.3384]
[1730836604999,3.2078,2412.6,2411.9,0.33167]
[1730836605301,3.2078,2412.6,2412.3,0.33161]
[1730836605597,3.2078,2412.6,2412.3,0.3316]
[1730836606100,3.2078,2412.6,2411.9,3.2078]
[1730836606802,3.2078,2412.6,2412.2,0.33162]
[1730836607498,3.2078,2412.6,2411.9,3.2078]
[1730836608195,3.2078,2412.3,2411.5,0.33171]
[1730836608500,3.2078,2412.3,2411.4,3.53952]
[1730836608501,0.33163,2412.2,2411.4,3.53952]